Cogmind - Beta 10.2 --- EXPLORER MODE // 2021.04.05 @ 19:32:01 Player: Analote Result: Self-destructed Performance ------------- Evolutions (5) 2500 Regions Visited (6) 1200 Robots Destroyed (50) 250 Value Destroyed (1650) 1650 Prototype IDs (2) 40 Alien Tech Used (0) 0 Bonus (0) 0 TOTAL SCORE: 5640 Bonus ------- None Cogmind --------- Core Integrity 901/1000 Matter 209/300 Energy 320/320 System Corruption 1% Temperature Cool (0) Movement Flying (114) Ox1 Location -5/Factory Parts ------- > --- POWER (4) -------- Micro Nuclear Core Micro Nuclear Core Micro Nuclear Core Micro Fission Core > --- PROPULSION (5) --- Nuclear Pulse Thruster Nuclear Pulse Thruster Nuclear Pulse Thruster > --- UTILITY (7) ------ Power Amplifier Improved Heat Sink Long-range Sensor Array Advanced Signal Interpreter Recalibrator > --- WEAPON (2) ------- Chainsword Chainsword > --- INVENTORY (4) ---- Improved Maneuvering Thrusters Peak State ------------ > --- POWER ------------ Micro Nuclear Core Micro Nuclear Core Micro Nuclear Core Micro Fission Core > --- PROPULSION ------- Cesium-ion Thruster Cesium-ion Thruster Nuclear Pulse Thruster Nuclear Pulse Thruster Nuclear Pulse Thruster > --- UTILITY ---------- Power Amplifier Improved Heat Sink Long-range Sensor Array Advanced Signal Interpreter Kinecellerator Improved Transmission Jammer Recalibrator > --- WEAPON ----------- Chainsword Chainsword > --- INVENTORY -------- Micro Nuclear Core Improved Maneuvering Thrusters [Rating: 75] Favorites ----------- Power Micro Nuclear Core Engine Light Ion Engine Power Core Micro Nuclear Core Propulsion Cesium-ion Thruster Hover Unit Improved Hover Unit Flight Unit Cesium-ion Thruster Utility Advanced Signal Interpreter Device Improved Heat Sink Processor Advanced Signal Interpreter Protection Light Armor Plating Weapon Chainsword Ballistic Gun Light Assault Rifle Ballistic Cannon Light Cannon Slashing Weapon Chainsword Build | -11 -10 -9 -8 -7 -6 -5 ------- Run | Scr Mat Mat Mat Fac Fac Fac Slots Evolved 11 | . 1 2 2 2 2 2 Power 3 | . 1 . . . 2 . Propulsion 3 | . . 2 1 . . . Utility 5 | . . . 1 2 . 2 Weapon . | . . . . . . . Parts Attached 74 | 3 9 6 20 18 14 4 Power 23 | 1 2 2 7 6 4 1 Engine 10 | 1 2 2 3 2 . . Core 13 | . . . 4 4 4 1 Reactor . | . . . . . . . Propulsion 22 | . 4 2 6 5 5 . Treads . | . . . . . . . Leg . | . . . . . . . Wheel . | . . . . . . . Hover 2 | . 2 . . . . . Flight 20 | . 2 2 6 5 5 . Utility 18 | . 1 2 3 5 5 2 Device 15 | . . 2 1 5 5 2 Storage . | . . . . . . . Processor 2 | . . . 2 . . . Hackware . | . . . . . . . Protection 1 | . 1 . . . . . Artifact . | . . . . . . . Weapon 11 | 2 2 . 4 2 . 1 Energy Gun . | . . . . . . . Energy Cannon . | . . . . . . . Ballistic Gun 5 | 2 1 . 2 . . . Ballistic Cannon 1 | . 1 . . . . . Launcher . | . . . . . . . Special Weapon . | . . . . . . . Impact Weapon . | . . . . . . . Slashing Weapon 5 | . . . 2 2 . 1 Piercing Weapon . | . . . . . . . Special Melee Weapon . | . . . . . . . Unidentified Prototypes 2 | . . . . 1 1 . Parts Lost 23 | . . 3 6 9 1 4 Power 6 | . . 2 2 2 . . Propulsion 11 | . . 1 2 5 1 2 Utility 4 | . . . . 2 . 2 Weapon 2 | . . . 2 . . . Highest Loss Streak 4 | . . 1 3 4 1 4 Average Slot Usage (%) 83 | . 70 85 85 76 99 98 Engine 8 | . 25 18 8 2 . . Core 8 | . . . 3 7 24 22 Flight 24 | . 7 27 36 20 30 26 Device 15 | . . 11 15 16 19 32 Processor 6 | . . . 3 14 11 5 Protection 1 | . 9 6 . . . . Ballistic Gun 4 | . 23 10 2 . . . Ballistic Cannon 1 | . 1 10 1 . . . Slashing Weapon 9 | . . . 11 13 12 10 Naked Turns . | . . . . . . . Heaviest Build 40 | 5 13 15 21 23 38 40 Greatest Support 44 | 3 16 12 36 38 44 36 Greatest Overweight (x) 3 | 1 3 1 2 2 1 1 Average Overweight (x) . | . 1 . . . . 1 Largest Inventory Capacity 4 | 4 4 4 4 4 4 4 Average Capacity 4 | 4 4 4 4 4 4 4 Most Carried 4 | 1 4 4 4 4 4 2 Average Carried 1 | . 1 3 1 1 3 1 Final Capacity 4 | 4 4 4 4 4 4 4 Final Carried 4 | 1 4 4 4 3 3 1 Class Distribution -------------------- 40% | Hacker-Mutant 36% | Hacker-Sprinter 13% | Generator-Mutant 8% | Generator-Sprinter Dominant Class ---------------- Hacker-Mutant | -10/Materials Hacker-Mutant | -9/Materials Hacker-Sprinter | -8/Materials Hacker-Mutant | -7/Factory Generator-Sprinter | -6/Factory Generator-Mutant | -5/Factory Resources | -11 -10 -9 -8 -7 -6 -5 ----------- Run | Scr Mat Mat Mat Fac Fac Fac Matter Collected 999 | 217 123 101 348 150 60 . Remotely . | . . . . . . . Salvage Created 1845 | . 256 123 804 394 213 55 Parts 106 | . 14 9 51 19 9 4 Haulers Intercepted 1 | . . . 1 . . . Recyclers Shooed 2 | . 1 . 1 . . . Parts Field Recycled . | . . . . . . . Retrieved Matter . | . . . . . . . Parts Self-Destructed . | . . . . . . . Prevented . | . . . . . . . Kills | -11 -10 -9 -8 -7 -6 -5 ------- Run | Scr Mat Mat Mat Fac Fac Fac Combat Hostiles Destroyed 36 | . 6 3 15 8 3 1 Melee 23 | . . . 11 8 3 1 Guns 11 | . 6 1 4 . . . Cannons 2 | . . 2 . . . . Classes Destroyed 12 | . 4 2 3 3 . . Worker 1 | . . . 1 . . . Tunneler 1 | . 1 . . . . . Hauler 1 | . . . 1 . . . Recycler 1 | . 1 . . . . . Operator 2 | . . . 2 . . . Watcher 8 | . . 2 4 1 1 . Swarmer 9 | . 4 . 4 1 . . Grunt 13 | . 2 2 7 2 . . Duelist 1 | . . . . 1 . . Sentry 7 | . . 1 4 . 2 . Hunter 3 | . . . . 3 . . Programmer 3 | . . . . 1 1 1 Best Kill Streak 6 | . 6 2 4 3 2 1 Combat Bots Only 4 | . 4 2 4 3 2 1 Max Kills in Single Turn 1 | . 1 1 1 1 1 1 Gunslinging . | . . . . . . . Exploded . | . . . . . . . Melee 1 | . . . 1 1 1 1 Uniques/NPCs Destroyed . | . . . . . . . Combat | -11 -10 -9 -8 -7 -6 -5 -------- Run | Scr Mat Mat Mat Fac Fac Fac Damage Taken 2089 | . 181 161 561 572 222 392 Core 610 | . 39 7 133 263 69 99 Absorbed by Shields 33 | . . . . 15 . 18 Core Remaining (%) 85 | 100 84 98 75 62 91 . Volleys Fired 69 | . 32 18 19 . . . Largest 2 | . 2 2 2 . . . Hottest 55 | . 40 55 55 . . . Shots Fired 138 | . 64 36 38 . . . Gun 101 | . 64 18 19 . . . Cannon 37 | . . 18 19 . . . Launcher . | . . . . . . . Special . | . . . . . . . Kinetic 138 | . 64 36 38 . . . Thermal . | . . . . . . . Explosive . | . . . . . . . Electromagnetic . | . . . . . . . Robot Hit Streak 31 | . 31 8 18 . . . Robot Miss Streak 2 | . 2 2 1 . . . Penetration Max . | . . . . . . . Secondary Targets . | . . . . . . . Shots Hit Robots 210 | . 50 30 65 39 22 4 Core Hits 77 | . 20 10 30 11 5 1 Critical Hits 4 | . . 1 1 2 . . Critical Kills 1 | . . . . 1 . . Critical Parts Destroyed 3 | . . 1 1 1 . . Melee Attacks 123 | . . . 47 43 28 5 Impact . | . . . . . . . Slashing 123 | . . . 47 43 28 5 Piercing . | . . . . . . . Sneak Attacks 13 | . . . 6 1 6 . Combat Hostiles 6 | . . . . . 6 . Follow-up Attacks 11 | . . . 2 6 3 . Damage Inflicted 5746 | . 428 407 1975 1477 1298 161 Guns 702 | . 428 133 141 . . . Cannons 478 | . . 274 204 . . . Explosions . | . . . . . . . Melee 4552 | . . . 1630 1477 1284 161 Ramming 14 | . . . . . 14 . Kinetic 1180 | . 428 407 345 . . . Thermal . | . . . . . . . Explosive . | . . . . . . . Electromagnetic . | . . . . . . . Impact . | . . . . . . . Slashing 4552 | . . . 1630 1477 1284 161 Piercing . | . . . . . . . Highest Corruption 2 | . . . 2 . . 1 Average Corruption 1 | . . . 1 . . 1 Corruption Purged . | . . . . . . . Effects 3 | . . . 3 . . . Message Errors 1 | . . . 1 . . . Energy Discharges 2 | . . . 2 . . . Overload Shots . | . . . . . . . Overflow Damage 501 | . . . 180 210 111 . Projectiles . | . . . . . . . Explosions . | . . . . . . . Melee 501 | . . . 180 210 111 . Knockbacks 5 | . . 2 3 . . . Impact . | . . . . . . . Kinetic 5 | . . 2 3 . . . Secondary . | . . . . . . . Self-Inflicted Damage 7 | . . . . . 7 . Shots . | . . . . . . . Rammed 1 | . . . . . 1 . Targets Rammed 1 | . . . . . 1 . Kicked . | . . . . . . . Crushed . | . . . . . . . Highest Temperature 245 | . 228 62 9 . 245 4 Average Temperature 91 | . 80 35 2 . 103 4 Received Heat Transfer 945 | . 132 129 252 279 96 57 Siege Activations . | . . . . . . . Robots Corrupted . | . . . . . . . Combat Hostiles . | . . . . . . . Parts Fried . | . . . . . . . Impact Corruptions . | . . . . . . . Robots Melted . | . . . . . . . Combat Hostiles . | . . . . . . . Parts Melted . | . . . . . . . Heat Transferred . | . . . . . . . Parts Sabotaged . | . . . . . . . Parts Stolen . | . . . . . . . Parts Stripped . | . . . . . . . Power Chain Reactions . | . . . . . . . Missiles Intercepted . | . . . . . . . Alert | -11 -10 -9 -8 -7 -6 -5 ------- Run | Scr Mat Mat Mat Fac Fac Fac Peak Influence 388 | . 220 84 388 187 231 161 Initial 127 | . . . 25 127 16 82 Average 102 | . 91 45 142 91 116 99 Maximum Alert Level 1 | . 1 . 1 . 1 . Low Security (%) 88 | 100 72 100 77 100 79 100 Level 1 11 | . 27 . 22 . 20 . Level 2 . | . . . . . . . Level 3 . | . . . . . . . Level 4 . | . . . . . . . Level 5 . | . . . . . . . High Security . | . . . . . . . Max Security . | . . . . . . . Squads Dispatched 10 | . . . 1 6 . 3 Investigation 4 | . . . . 3 . 1 Extermination 2 | . . . . 1 . 1 Reinforcement 3 | . . . . 2 . 1 Assault . | . . . . . . . Garrison 1 | . . . 1 . . . Intercept . | . . . . . . . Construction Impeded . | . . . . . . . Haulers Reinforced . | . . . . . . . Stealth | -11 -10 -9 -8 -7 -6 -5 --------- Run | Scr Mat Mat Mat Fac Fac Fac Distress Signals 3 | . 2 . 1 . . . Communications Jammed . | . . . . . . . Distress Signals . | . . . . . . . Times Spotted 75 | . 11 6 24 17 9 8 Peak Tracking Total 5 | . 4 2 4 3 4 5 Tactical Retreats 8 | . 1 . 2 2 3 . Traps | -11 -10 -9 -8 -7 -6 -5 ------- Run | Scr Mat Mat Mat Fac Fac Fac Traps Triggered 9 | . 1 1 4 2 . 1 Indirectly . | . . . . . . . Trap Hack Attempts . | . . . . . . . Triggered . | . . . . . . . Disarmed . | . . . . . . . Reprogrammed . | . . . . . . . Reused . | . . . . . . . Traps Extracted . | . . . . . . . Installed . | . . . . . . . Triggered . | . . . . . . . Machines | -11 -10 -9 -8 -7 -6 -5 ---------- Run | Scr Mat Mat Mat Fac Fac Fac Machines Disabled . | . . . . . . . Max in Single Turn . | . . . . . . . Machines Sabotaged . | . . . . . . . Garrisons Compromised . | . . . . . . . Overloaded Fab Kills . | . . . . . . . Fab Network Shutdowns . | . . . . . . . Hacking | -11 -10 -9 -8 -7 -6 -5 --------- Run | Scr Mat Mat Mat Fac Fac Fac Machines Accessed 5 | . . . 1 3 . 1 Terminals 3 | . . . 1 2 . . Fabricators 1 | . . . . 1 . . Repair Stations 1 | . . . . . . 1 Recycling Units . | . . . . . . . Scanalyzers . | . . . . . . . Garrison Access . | . . . . . . . Total Hacks 15 | . . . 2 8 . 5 Successful 9 | . . . 2 4 . 3 Failed 6 | . . . . 4 . 2 Catastrophic 1 | . . . . 1 . . Database Lockouts . | . . . . . . . Manual . | . . . . . . . Terminals 7 | . . . 2 5 . . Fabricators 3 | . . . . 3 . . Repair Stations 5 | . . . . . . 5 Recycling Units . | . . . . . . . Scanalyzers . | . . . . . . . Garrison Access . | . . . . . . . Terminal Hacks 5 | . . . 2 3 . . Record 5 | . . . 2 3 . . Fabricator Hacks 1 | . . . . 1 . . Network Status 1 | . . . . 1 . . Repair Station Hacks 3 | . . . . . . 3 Scan Component 2 | . . . . . . 2 Repair 1 | . . . . . . 1 Recycling Unit Hacks . | . . . . . . . Scanalyzer . | . . . . . . . Garrison Access Hacks . | . . . . . . . Unauthorized Hacks . | . . . . . . . Terminals . | . . . . . . . Fabricators . | . . . . . . . Repair Stations . | . . . . . . . Recycling Units . | . . . . . . . Scanalyzers . | . . . . . . . Garrison Access . | . . . . . . . Data Cores Recovered 2 | . . . 2 . . . Used . | . . . . . . . Hacking Detections 4 | . . . . 3 . 1 Full Trace Events 4 | . . . . 3 . 1 Feedback Events . | . . . . . . . Feedback Blocked . | . . . . . . . Robot Schematics Acquired . | . . . . . . . Robots Built . | . . . . . . . Matter . | . . . . . . . Time . | . . . . . . . Total Robot Build Rating . | . . . . . . . Part Schematics Acquired . | . . . . . . . Parts Built . | . . . . . . . Matter . | . . . . . . . Time . | . . . . . . . Total Part Build Rating . | . . . . . . . Parts Repaired 1 | . . . . . . 1 Time 14 | . . . . . . 14 Parts Recycled . | . . . . . . . Recycled Matter . | . . . . . . . Retrieved Matter . | . . . . . . . Retrieved Components . | . . . . . . . Parts Scanalyzed . | . . . . . . . Part Schematics Acquired . | . . . . . . . Parts Damaged . | . . . . . . . Bothacking | -11 -10 -9 -8 -7 -6 -5 ------------ Run | Scr Mat Mat Mat Fac Fac Fac Used RIF Installer . | . . . . . . . Robots Hacked . | . . . . . . . Non-combat . | . . . . . . . Combat . | . . . . . . . Robot Hacks Applied . | . . . . . . . Relay Couplers Released . | . . . . . . . Robots Rewired . | . . . . . . . Allies Hacked . | . . . . . . . Hacks Repelled . | . . . . . . . Allies | -11 -10 -9 -8 -7 -6 -5 -------- Run | Scr Mat Mat Mat Fac Fac Fac Total Allies . | . . . . . . . Largest Group . | . . . . . . . Highest-Rated Group . | . . . . . . . Highest-Rated Ally . | . . . . . . . Total Orders . | . . . . . . . Ally Attacks . | . . . . . . . Total Damage . | . . . . . . . Kills . | . . . . . . . Allies Corrupted . | . . . . . . . Allies Melted . | . . . . . . . Intel | -11 -10 -9 -8 -7 -6 -5 ------- Run | Scr Mat Mat Mat Fac Fac Fac Robot Analysis Total . | . . . . . . . Derelict Logs Recovered . | . . . . . . . Drone Launches . | . . . . . . . Drone Recoveries . | . . . . . . . Exploration | -11 -10 -9 -8 -7 -6 -5 ------------- Run | Scr Mat Mat Mat Fac Fac Fac Turns Passed 3063 | 41 423 267 760 887 360 325 Spaces Moved 2848 | 39 250 200 753 818 549 239 Core 152 | 39 103 . . 10 . . Treads . | . . . . . . . Legs . | . . . . . . . Wheels . | . . . . . . . Hover 49 | . 49 . . . . . Flight 2647 | . 98 200 753 808 549 239 Fastest Speed 28 | 50 56 34 28 28 28 108 Average Speed 61 | 87 126 102 37 56 35 108 Slowest Speed 200 | 100 200 117 200 200 111 114 Overloaded Moves . | . . . . . . . Propulsion Burnouts . | . . . . . . . Robots Hopped 11 | . . . 6 4 1 . Cave-ins Triggered . | . . . . . . . Exploration Rate (%) 25 | 4 42 24 63 23 17 8 Regions Visited 6 Branch Regions . Pre-discovered Areas . | . . . . . . . Known Exits Taken 6 | 1 1 1 1 1 1 . Unknown Exits Taken . | . . . . . . . Scrap Searched . | . . . . . . . Spaces Dug 7 | . . . 2 2 3 . Terrain Destroyed 7 | . . . 2 2 3 . Melee 7 | . . . 2 2 3 . Projectile . | . . . . . . . AOE . | . . . . . . . Terrain Rammed . | . . . . . . . Walls Destroyed . | . . . . . . . Machines Disabled . | . . . . . . . Actions | -11 -10 -9 -8 -7 -6 -5 --------- Run | Scr Mat Mat Mat Fac Fac Fac Total 3864 | 45 305 228 1135 1182 672 297 Wait 652 | . . . 277 274 70 31 Move 2821 | 38 249 199 741 809 546 239 Hop 10 | . . . 5 4 1 . Pick Up 74 | 4 12 5 23 18 10 2 Fast Attach . | . . . . . . . Attach 51 | 3 8 5 15 14 3 3 Detach . | . . . . . . . Swap 24 | . 1 1 5 5 11 1 Drop 28 | . 3 . 11 7 6 1 Fire 69 | . 32 18 19 . . . Melee 104 | . . . 39 36 24 5 Ram 1 | . . . . . 1 . Kick . | . . . . . . . Crush . | . . . . . . . Escape Stasis 30 | . . . . 15 . 15 Rewire . | . . . . . . . Trap . | . . . . . . . Miscellaneous . | . . . . . . . Route ------- -11/Scrapyard -10/Materials (discovered 2 exits: *Mat / *Min) -9/Materials -8/Materials -7/Factory -6/Factory -5/Factory History --------- Turn | Location | Event 7 | -11/Scrapyard | Identified exit to Materials 7 | -11/Scrapyard | Discovered exit to Materials (range 14) 42 | -11/Scrapyard | Entered Materials 42 | -10/Materials | Evolved 1 slot: Power x1 293 | -10/Materials | Identified exit to Mines 293 | -10/Materials | Discovered exit to Mines (range 6) 318 | -10/Materials | Build established: Hacker-Mutant 458 | -10/Materials | Identified exit to Materials 458 | -10/Materials | Discovered exit to Materials (range 5) 465 | -10/Materials | Entered another Materials area 465 | -9/Materials | Evolved 2 slots: Propulsion x2 710 | -9/Materials | Identified exit to Materials 710 | -9/Materials | Discovered exit to Materials (range 10) 732 | -9/Materials | Entered another Materials area 732 | -8/Materials | Evolved 2 slots: Propulsion x1, Utility x1 946 | -8/Materials | Lost 3 parts (1p2w) 1122 | -8/Materials | Build established: Hacker-Sprinter 1251 | -8/Materials | Garrison activated, responded to threat 1487 | -8/Materials | Identified exit to Factory 1487 | -8/Materials | Discovered exit to Factory (range 15) 1492 | -8/Materials | Entered Factory 1492 | -7/Factory | Evolved 2 slots: Utility x2 1570 | -7/Factory | Lost 4 parts (1p3n) 1737 | -7/Factory | Lost 4 parts (1p1n2u) 1820 | -7/Factory | Build established: Hacker-Mutant 2302 | -7/Factory | Build established: Hacker-Sprinter 2374 | -7/Factory | Identified exit to Factory 2374 | -7/Factory | Discovered exit to Factory (range 14) 2379 | -7/Factory | Entered another Factory area 2379 | -6/Factory | Evolved 2 slots: Power x2 2723 | -6/Factory | Identified exit to Factory 2723 | -6/Factory | Discovered exit to Factory (range 16) 2739 | -6/Factory | Entered another Factory area 2739 | -5/Factory | Evolved 2 slots: Utility x2 2970 | -5/Factory | Build established: Generator-Mutant 2975 | -5/Factory | Repaired Chainsword 3064 | -5/Factory | Self-destructed Last Messages --------------- 03031_ Field strength at 50. 03032_ Field strength at 45. 03033_ Cesium-ion Thruster destroyed. 03033_ Field strength at 33. 03034_ Field strength at 28. 03035_ Field strength at 23. 03036_ Field strength at 10. 03039_ Field strength at 2. 03040_ Stasis field depleted. 03045_ Cesium-ion Thruster destroyed. 03052_ P-70 Sage destroyed. 03052_ K-01 Serf collects debris. 03054_ C-30 ARC bursts open, deploying its payload. 03054_ G-50 Soldier unfolds itself. 03054_ Kinecellerator destroyed. 03055_ K-01 Serf collects debris. 03057_ P-70 Sage Imp. Heat Sink severed. 03057_ K-01 Serf collects debris. 03061_ Imp. Transmission Jammer destroyed. 03061_ K-01 Serf collects debris. Map ----- +----------------------------------------------------+ | ?????????????????????????????????????????????????? | | ?????????????????????????????????????????????????? | | ?????????????????????????????????????????????????? | | ?????????????????????????????????????????????????? | | ?????????????????????????????????????????????????? | | ??????###????????????????????????????????????????? | | ????? ????????????????????????????????????????? | | ????? ????????????????????????????????????????? | | ???"?" #???????????????????????????????????????? | | "" """ #???????????????????????????????????????? | | "" """ ###########+###########?????????????????? | | # # # | !#?????????????????? | | "" """ # # # #?????????????????? | | "" """ # ! # # #?????????????????? | | "" """ # + # #?????????????????? | | # "" # # " " #?????????????????? | | # "F"" # # ""R"" #?????????????????? | | # """" # # """"" #?????????????????? | | # ]# # ! #?????????????????? | | ###+####### #####+#####?????????????????? | | ##############?????? | | k # #?????? | | ^ # #?????? | | ^ | p # #?????? | | ^ w=%! # #?????? | | #################+#####@! # """ ""????????? | | # #?????? ????# gg # """ ""????????? | | # ! [ #?????? ????# R # """ """ #?????? | | + #?????? ????# g%k #?????? | | # """""" #?????? ????# # """ """ #?????? | | # """""" #?????? ????# # """ """???????? | | # """""" #??????""????# # """ ""????????? | | # """""" ?????????????# # | ????????? | | # #????????????# ##########?????????? | | # """""" #????????????#^ ??????? | | # """""" #????????????# ??????? | | # """"""??????????????# ??????? | | # """""???????????????# """ """ """ """???????? | | # ?????????????????# """ """ """???????????? | | # ""??????????????????# """ """ ""????????????? | | # "???????????????????# ??????????????? | | + "??????????????????? ??????????????? | | # "???????????????????#+###### ??????????????? | | # ???????????????????? ?????? ?????????????? | | ##???????????????????? ??????? ??????????????? | | #????????????????????? ???????????????????????? | | ###????????????????????? ???????????????????????? | | ?????????????????????? ???????????????????????? | | ???????????????????# ???????????????????????? | | ?????????????????# ???????????????????????? | +----------------------------------------------------+ Best States ------------- Heat Dissipation 56 Energy Generation 56 Energy Capacity 350 Matter Stores 300 Matter Capacity 300 Sight Range 16 Robot Scan Range 20 Terrain Scan Density 110 Jamming Range 12 Power Amplification 20 Additional Mass Support 9 Armor Coverage 150 Resistance: KI 35 Resistance: TH 35 Resistance: EX 35 Resistance: EM 35 Resistance: I 35 Resistance: S 35 Resistance: P 35 Evasion (%) 69 Kinecelleration 30 Offensive Hacking 20 Item Schematics ----------------- None Robot Schematics ------------------ None Fabricated ------------ Nothing Alien Tech Used ----------------- None Achievements -------------- Deadly Force I Spy Challenges ------------ None Game ------ Seed AntimissileHackingFalx Manual? 0 Play Time 00:31:36 Cumulative 37.2 hours Start 2021.04.05 @ 19:01:39 End 2021.04.05 @ 19:32:01 Sessions 1 Manual Loads 0 Difficulty Explorer Special Mode None Game No. 55 Rogue 0 Adventurer 0 Explorer 55 Win Type - Total 0 Types 0/0/0/0/0/0/0/0/0 Lore% 33 Gallery% 46 Achievement% 39 Wizard Run 0 Options --------- ASCII 0 Keyboard 0 Movement Mouse Keybinds 0 Fullscreen 1 Font 12/Smallcaps Map View 83x54 Tactical HUD 1 Map Filters NONE Filters NONE Steam 1 RUN: df1bd810-904f-4fbf-a19c-025c0a00783c